fUSD/lending_fUSD_20241023
["ID","MTS","AMOUNT","RATE_DAILY","PERIOD"]
[340673746,1729642248691,-184.36,0.000397,31]
[340673747,1729642248701,-184.36,0.000397,31]
[340673748,1729642248710,-184.36,0.000397,31]
[340673749,1729642248720,-184.36,0.000397,31]
[340673750,1729642248730,-184.36,0.000397,31]
[340673751,1729642248739,-184.36,0.000397,31]
[340673752,1729642248748,-184.36,0.000397,31]
[340673753,1729642248758,-184.36,0.000397,31]
[340673754,1729642248767,-500.0,0.0004,120]
[340673755,1729642248777,-2500.0,0.0004,120]
[340673756,1729642248787,-10000.0,0.00040075,30]
[340673757,1729642248799,-5000.0,0.00040075,60]
[340673758,1729642248809,-152.0,0.00040919,3]
[340673759,1729642248818,-152.13,0.00040952,2]
[340673760,1729642248828,-290.24,0.00041282,2]
[340673761,1729642248837,-167.55,0.00041347,120]
[340673762,1729642248846,-756.63,0.00041398,2]
[340673763,1729642248856,-424.34,0.00041398,2]
[340673764,1729642248865,-756.63,0.00041398,2]
[340673765,1729642248875,-756.63,0.00041398,2]
[340673766,1729642248884,-756.63,0.00041398,2]
[340673767,1729642248894,-756.63,0.00041398,2]
[340673768,1729642248903,-753.87,0.00041398,2]
[340673769,1729642248913,-150.0,0.00041639,120]
[340673770,1729642248922,-429.92,0.00042357,2]
[340673771,1729642248931,-429.92,0.00042357,2]
[340673772,1729642248941,-150.98,0.00042357,2]
[340673773,1729642248950,-305.71,0.00042357,2]
[340673774,1729642248960,-378.45,0.00042357,2]
[340673775,1729642248969,-425.84,0.00042357,2]
[340673776,1729642248979,-186.67,0.00042357,2]
[340673777,1729642248988,-7163.11895626,0.00042553,15]
[340673778,1729642248998,-1000.0,0.00042804,2]
[340673779,1729642249007,-152.28,0.00042857,2]
[340673780,1729642249017,-152.30230482,0.00043023,28]
[340673781,1729642249026,-430.06,0.0004319,2]
[340673782,1729642249035,-150.0,0.0004319,2]
[340673783,1729642249047,-430.06,0.0004319,2]
[340673784,1729642249056,-430.06,0.0004319,2]
[340673785,1729642249066,-290.24,0.00043546,2]
[340673786,1729642249075,-500.0,0.00043836,26]
[340673787,1729642249084,-2000.000002,0.00043855,20]
[340673788,1729642249094,-500.0,0.00043982,4]
[340673789,1729642249104,-500.0,0.00043991,4]
[340673790,1729642249113,-500.0,0.00044,4]
[340673791,1729642249123,-501.252195,0.00044,57]
[340673792,1729642249132,-500.0,0.00044,120]
[340673793,1729642249141,-152.0,0.00044391,4]
[340673794,1729642249151,-158.84,0.00044577,120]
[340673795,1729642249161,-150.0,0.00045,85]
[340673796,1729642249170,-17716.4750688,0.00045466,9]
[340673797,1729642249180,-21382.55189907,0.00045475,120]
[340673798,1729642249189,-154.23,0.00045753,2]
[340673799,1729642249199,-156.23,0.00045753,2]
[340673800,1729642249208,-290.24,0.0004581,2]
[340673801,1729642249218,-184.36,0.000459,39]
[340673802,1729642249228,-184.36,0.000459,39]
[340673803,1729642249238,-184.36,0.000459,39]
[340673804,1729642249247,-184.36,0.000459,39]
[340673805,1729642249258,-184.36,0.000459,39]
[340673806,1729642249268,-184.36,0.000459,39]
[340673807,1729642249277,-184.36,0.000459,39]
[340673808,1729642249286,-184.36,0.000459,39]
[340673809,1729642249300,-184.36,0.000459,39]
[340673810,1729642249310,-184.36,0.000459,39]
[340673811,1729642249319,-184.36,0.000459,39]
[340673812,1729642249329,-184.36,0.000459,39]
[340673813,1729642249343,-184.36,0.000459,39]
[340673814,1729642249352,-184.36,0.000459,39]
[340673815,1729642249362,-184.36,0.000459,39]
[340673816,1729642249371,-184.36,0.000459,39]
[340673817,1729642249382,-184.36,0.000459,39]
[340673818,1729642249391,-184.36,0.000459,39]
[340673819,1729642249401,-184.36,0.000459,39]
[340673820,1729642249411,-184.36,0.000459,39]
[340673821,1729642249420,-184.36,0.000459,39]
[340673822,1729642249432,-184.36,0.000459,39]
[340673823,1729642249442,-184.36,0.000459,39]
[340673824,1729642249452,-184.36,0.000459,39]
[340673825,1729642249462,-175.18,0.00046,96]
[340673826,1729642249472,-7163.11895626,0.0004646,15]
[340673827,1729642249482,-2646.81113072,0.00046558,16]
[340673828,1729642249492,-1174.1474865,0.000469,2]
[340673829,1729642249502,-17716.4750688,0.0004699,10]
[340673830,1729642249511,-266.543714,0.00047,2]
[340673831,1729642249521,-5000.0,0.00047,5]
[340673832,1729642249531,-5000.0,0.00047,5]
[340673833,1729642249541,-653.4718465,0.00047144,19]
[340673834,1729642249555,-162.77304952,0.00047171,7]
[340673835,1729642249565,-17716.4750688,0.00047234,10]
[340673836,1729642249575,-17716.4750688,0.00047244,10]
[340673837,1729642249584,-428.9,0.00047295,2]
[340673838,1729642249594,-152.13,0.00047354,2]
[340673839,1729642249603,-152.0,0.00047862,5]
[340673840,1729642249612,-500.0,0.00048,120]
[340673841,1729642249622,-290.24,0.00048074,2]
[340673842,1729642249631,-150.0,0.00048117,2]
[340673843,1729642249641,-150.0,0.00048117,2]
[340673844,1729642249650,-150.0,0.00048117,2]
[340673845,1729642249659,-150.0,0.00048117,2]
[340673846,1729642249672,-5800.0,0.00048241,7]
[340673847,1729642249681,-5800.0,0.00048249,7]
[340673848,1729642249691,-3275.43941041,0.00048254,7]
[340673849,1729642249700,-5800.0,0.00048258,7]
[340673850,1729642249710,-384.194,0.0004861,84]
[340673851,1729642249720,-17716.4750688,0.00048969,10]
[340673852,1729642249729,-35432.9501377,0.0004898,10]
[340673853,1729642249739,-53149.4252065,0.0004899,10]
[340673854,1729642249750,-44542.6719987,0.0004899,10]
[340673855,1729642249759,-50000.0,0.00049,49]
[340673856,1729642249769,-2266.10024618,0.00049,59]
[340673857,1729642250363,-47733.89975382,0.00049,59]
[340673858,1729642250373,-50000.0,0.00049,120]
[340673859,1729642250383,-1174.14748644,0.00049022,2]
[340673860,1729642250392,-500.0,0.00049315,28]
[340673861,1729642250401,-190.86438807,0.0004989,38]
[340673862,1729642250411,-17716.4750688,0.0004996,10]
[340673863,1729642250420,-11135.6679997,0.0004996,10]
[340673864,1729642250429,-17716.4750688,0.00049969,10]
[340673865,1729642250439,-33407.003999,0.00049969,10]
[340673866,1729642250448,-70865.9002753,0.0004998,10]
[340673867,1729642250457,-33407.003999,0.0004998,10]
[340673868,1729642250467,-53149.4252065,0.0004999,10]
[340673869,1729642250476,-44542.6719987,0.0004999,10]
[340673870,1729642250485,-22271.3359994,0.0004999,10]
[340673871,1729642250495,-467.67257635,0.00049999,31]
[340673872,1729642250504,-50000.0,0.0005,50]
[340673873,1729642250514,-9729.65410814,0.0005,60]
[340673884,1729643422250,250.0,0.0001,2]
[340673891,1729643432145,-366.8077,0.000109,2]
[340673892,1729643432154,-157.54710301,0.000109,2]
[340673893,1729643432163,-500.0,0.00010973,2]
[340673894,1729643432173,-201.49562318,0.00010973,2]
[340673895,1729643432182,-154.67394876,0.0001099,2]
[340673896,1729643432191,-5344.26184019,0.00010998,2]
[340673897,1729643432202,-4270.10351082,0.00010998,2]
[340673898,1729643432225,-11750.168509,0.00010998,2]
[340673899,1729643432234,-150.0,0.00010999,2]
[340673900,1729643432244,-500.0,0.00010999,2]
[340673901,1729643432254,-150.03282711,0.00010999,2]
[340673902,1729643432263,-150.0,0.00011,2]
[340673903,1729643432272,-31681.85659888,0.00011,2]
[340673904,1729643432285,-103098.20448536,0.00011,2]
[340674055,1729643438109,-80722.14912001,0.00011,2]
[340674056,1729643438213,-33444.0,0.00011,2]
[340674366,1729643443206,-555.85808627,0.00010999,2]
[340674368,1729643443216,-77126.23028529,0.00011,2]
[340674369,1729643443227,-873.61465462,0.00011,2]
[340674370,1729643443299,-13821.75,0.00011,2]
[340674371,1729643443310,-925.66215928,0.00011,2]
[340674373,1729643446031,-1248.77766699,0.00011,2]
[340674389,1729644632202,-300.0,0.00010579,2]
[340674390,1729644632212,-646.28668161,0.0001058,2]
[340674391,1729644632221,-1491.71331839,0.0001058,2]
[340674392,1729644632232,-641.39763767,0.0001058,2]
[340674393,1729644632248,-2318.25085687,0.0001058,2]
[340674394,1729644632258,-163.861769,0.0001068,2]
[340674395,1729644632267,-1764.9202037,0.00010744,2]
[340674396,1729644632279,-34935.91546952,0.00010744,2]
[340674397,1729644632288,-236.66,0.00010744,2]
[340674398,1729644632297,-230.516,0.0001078,2]
[340674399,1729644632307,-150.0,0.00010899,2]
[340674400,1729644632317,-1736.6706,0.000109,2]
[340674401,1729644632327,-960.1231,0.000109,2]
[340674402,1729644632336,-500.0,0.00010973,2]
[340674403,1729644632345,-500.0,0.00010999,2]
[340674404,1729644632354,-187.86808287,0.00010999,2]
[340674405,1729644632364,-499.99,0.00010999,2]
[340674406,1729644632377,-3368.72782167,0.00011,2]
[340674407,1729644632388,-712.02367317,0.00011,2]
[340674408,1729644632399,-485.03142996,0.00011,2]
[340674409,1729644632410,-251.35461498,0.00011,2]
[340674410,1729644632421,-1903.25216808,0.00011,2]
[340674411,1729644632437,-821.40676677,0.00011,2]
[340674412,1729644632448,-1212.05820128,0.00011,2]
[340674413,1729644632458,-1797.71487316,0.00011,2]
[340674414,1729644632469,-894.38164469,0.00011,2]
[340674415,1729644632480,-741.8811006,0.00011,2]
[340674416,1729644632491,-784.34351086,0.00011,2]
[340674417,1729644632502,-1522.06617273,0.00011,2]
[340674418,1729644632513,-2127.12108198,0.00011,2]
[340674419,1729644632524,-6942.3,0.00011,2]
[340674420,1729644632534,-28879.402,0.00011,2]
[340674421,1729644632545,-1367.57781629,0.00011,2]
[340674422,1729644632665,-377.06213163,0.00011,2]
[340674423,1729644632907,-5438.28687281,0.00011,2]
[340674424,1729644632922,-478.31588386,0.00011,2]
[340674425,1729644632934,-844.4503927,0.00011,2]
[340674426,1729644632962,-3547.89675971,0.00011,2]
[340674427,1729644632973,-6959.30203298,0.00011,2]
[340674428,1729644632984,-11193.00085824,0.00011,2]
[340674429,1729644632995,-2394.04740967,0.00011,2]
[340674431,1729644638147,-4371.54825812,0.000109,2]
[340674432,1729644638160,-451.01075934,0.000109,2]
[340674433,1729644638311,-6525.06999584,0.000109,2]
[340674434,1729644638325,-468.87,0.000109,2]
[340674435,1729644638339,-2896.39516468,0.000109,2]
[340674436,1729644638395,-345.44,0.000109,2]
[340674437,1729644638406,-1048.97132202,0.000109,2]
[340674438,1729644638415,-190.25188156,0.00011,2]
[340674439,1729644638426,-54399.85453222,0.00011,2]
[340674440,1729644638438,-661.84036316,0.00011,2]
[340674441,1729644638449,-4181.1963038,0.00011,2]
[340674442,1729644638460,-12434.35441547,0.00011,2]
[340674443,1729644638471,-576.87446552,0.00011,2]
[340674444,1729644638483,-2235.6136962,0.00011,2]
[340674447,1729644638552,-902.63081299,0.00011,2]
[340674449,1729644638563,-604.45583017,0.00011,2]
[340674457,1729644638637,-564.10966175,0.00011,2]
[340674459,1729644638648,-421.399227,0.00011,2]
[340674461,1729644638661,-918.803945,0.00011,2]
[340674477,1729644640156,-883.46339637,0.00011,2]
[340674478,1729644640169,-1735.48639489,0.00011,2]
[340674479,1729644640183,-477.21,0.00011,2]
[340674480,1729644640217,-1094.57625342,0.00011,2]
[340674481,1729644640228,-2015.94855758,0.00011,2]
[340674482,1729644640241,-1643.05114931,0.00011,2]
[340674483,1729644640253,-9899.60970702,0.00011,2]
[340674484,1729644640272,-518.424,0.00011,2]
[340674485,1729644640283,-63477.06339999,0.00011,2]
[340674486,1729644640294,-840.77658634,0.00011,2]
[340674487,1729644640329,-395.92311807,0.00011,2]
[340674488,1729644640342,-52885.1900186,0.00011,2]
[340674489,1729644640387,-664.78948989,0.00011,2]
[340674490,1729644640398,-1714.25660773,0.00011,2]
[340674491,1729644640409,-1007.52312096,0.00011,2]
[340674494,1729644643299,-157.54710301,0.000109,2]
[340674495,1729644643308,-126.46679428,0.000109,2]
[340674496,1729644643353,-873.53320572,0.000109,2]
[340674497,1729644643363,-18393.85882294,0.00011,2]
[340674498,1729644643374,-3289.79913443,0.00011,2]
[340674499,1729644643386,-4771.61591239,0.00011,2]
[340674500,1729644643462,-519.62287576,0.00011,2]
[340674501,1729644643482,-26984.80062876,0.00011,2]
[340674502,1729644643491,-918.99900173,0.00011,2]
[340674504,1729644646116,-150.0,0.00010579,2]
[340674505,1729644646125,-3679.35886459,0.00011,2]
[340674506,1729644646138,-2579.12033108,0.00011,2]
[340674507,1729644646148,-1749.43114692,0.00011,2]
[340674508,1729644646173,-52940.47635741,0.00011,2]
[340674509,1729644646184,-35626.79698944,0.00011,2]
[340674510,1729644646229,-9764.46215859,0.00011,2]
[340674511,1729644646240,-6558.33282276,0.00011,2]
[340674512,1729644646393,-7868.912748,0.00011,2]
[340674513,1729644646404,-3484.6516,0.00011,2]
[340674514,1729644646416,-339.53061609,0.00011,2]
[340674517,1729644971537,224.82,0.00010149,2]
[340674520,1729645004259,1908.3570773,0.0001,2]
[340674535,1729645228145,250.0,0.0001,2]
[340674537,1729645531712,-401.48255063,0.000108,2]
[340674538,1729645541094,-42.31857494,0.000108,2]
[340674539,1729645541114,-924.18528642,0.000108,2]
[340674540,1729645541134,-150.0,0.00010899,2]
[340674541,1729645541158,-38.38886722,0.000109,2]
[340674566,1729645831364,-1000.0,0.00010899,2]
[340674567,1729645831373,-150.0,0.00010899,2]
[340674568,1729645831382,-204.72933278,0.000109,2]
[340674569,1729645831391,-272.78530838,0.000109,2]
[340674570,1729645831402,-484.32,0.000109,2]
[340674571,1729645831413,-503.022718,0.000109,2]
[340674572,1729645831466,-737.66324067,0.000109,2]
[340674573,1729645831476,-1997.79126706,0.000109,2]
[340674574,1729645831485,-7617.62395468,0.000109,2]
[340674575,1729645831525,-3534.77995549,0.000109,2]
[340674576,1729645831554,-1396.50221221,0.000109,2]
[340674577,1729645831566,-693.11,0.000109,2]
[340674578,1729645831577,-577.4926719,0.000109,2]
[340674579,1729645831588,-4773.0,0.000109,2]
[340674580,1729645831599,-398.2,0.000109,2]
[340674581,1729645831614,-3324.45701858,0.000109,2]
[340674582,1729645831625,-1474.18482912,0.000109,2]
[340674583,1729645831636,-10664.81645802,0.000109,2]
[340674584,1729645831645,-1550.4,0.000109,2]
[340674585,1729645831654,-176.013,0.0001099,2]
[340674586,1729645831663,-29691.14536017,0.00011,2]
[340674587,1729645837586,-372.113205,0.00010973,2]
[340674588,1729645837598,-127.886795,0.00010973,2]
[340674589,1729645837607,-231.22556482,0.00011,2]
[340674590,1729645840133,-533.04219564,0.00011,2]
[340674591,1729645840144,-433.68798309,0.00011,2]
[340674592,1729645840159,-654.5,0.00011,2]
[340674593,1729645840308,-91208.05211095,0.00011,2]
[340674594,1729645840320,-52658.8312508,0.00011,2]
[340674595,1729645840332,-35037.03905906,0.00011,2]
[340674596,1729645840341,-150.0,0.00011,2]
[340674597,1729645840350,-2250.03343241,0.00011714,2]
[340674598,1729645840360,-324.35,0.00011945,2]
[340674602,1729645840543,-499.99,0.00011945,2]
[340674603,1729645840556,-255.0,0.00011945,2]
[340674604,1729645840565,-3554.4,0.0001196,2]
[340674605,1729645840583,-10970.82,0.00011978,2]
[340674606,1729645840592,-300.0,0.00012,2]
[340674607,1729645840601,-192.1,0.00012349,2]
[340674608,1729645840610,-192.1,0.00012967,2]
[340674609,1729645840619,-270.0,0.0001309,2]
[340674610,1729645840628,-166.77,0.00013229,2]
[340674611,1729645840640,-192.1,0.00013584,2]
[340674612,1729645840655,-350.0,0.00014,2]
[340674613,1729645840665,-192.1,0.00014202,2]
[340674614,1729645840674,-192.1,0.00014819,2]
[340674615,1729645840683,-1405.0,0.00015,2]
[340674616,1729645840692,-354.0,0.00015,2]
[340674617,1729645840701,-158.66,0.00015342,2]
[340674618,1729645840711,-152.13,0.00015342,2]
[340674619,1729645840722,-178.27,0.00015342,2]
[340674620,1729645840731,-155.88,0.00015342,2]
[340674621,1729645840741,-177.68,0.00015342,2]
[340674622,1729645840750,-17066.47,0.000159,2]
[340674623,1729645840760,-400.0,0.00016,2]
[340674624,1729645840769,-213.57,0.00016747,2]
[340674625,1729645840779,-2751.0,0.00016802,2]
[340674626,1729645840788,-150.0,0.00016893,2]
[340674627,1729645840797,-16250.1339414,0.00017095,2]
[340674628,1729645840807,-213.57,0.00019011,2]
[340674629,1729645840816,-250.0,0.00019067,2]
[340674630,1729645840826,-250.0,0.00019088,2]
[340674631,1729645840835,-186.84,0.00019178,2]
[340674632,1729645840844,-460.94,0.00019219,2]
[340674633,1729645840853,-529.9,0.0001924,2]
[340674634,1729645840863,-166.77,0.00019844,2]
[340674635,1729645840872,-200.0,0.00019872,2]
[340674636,1729645840882,-200.0,0.00020295,2]
[340674637,1729645840891,-1000.0,0.00020834,2]
[340674638,1729645840900,-250.0,0.00021099,2]
[340674639,1729645840910,-180.0,0.00021242,2]
[340674640,1729645840919,-213.57,0.00021274,2]
[340674641,1729645840927,-159.18,0.00021369,2]
[340674642,1729645840937,-21520.24,0.00021433,2]
[340674643,1729645840946,-3827.77,0.00021537,2]
[340674644,1729645840954,-561.25,0.00021918,2]
[340674645,1729645840964,-424.55,0.00021918,2]
[340674646,1729645840973,-175.0,0.00022,2]
[340674647,1729645840982,-16250.1339414,0.00023301,4]
[340674648,1729645840991,-1000.0,0.00023439,2]
[340674649,1729645841000,-213.57,0.00023538,2]
[340674650,1729645841009,-555.0,0.00023774,2]
[340674651,1729645841018,-3149.608,0.00023774,2]
[340674652,1729645841028,-1909.0,0.00023774,2]
[340674653,1729645841037,-809.0,0.00023774,2]
[340674654,1729645841047,-5885.0,0.00023864,2]
[340674655,1729645841056,-1150.0,0.00023864,2]
[340674656,1729645841065,-150.0,0.00023864,2]
[340674657,1729645841075,-12822.261,0.00023864,2]
[340674658,1729645841084,-1104.216,0.00023864,2]
[340674659,1729645841094,-16250.1339414,0.00023864,4]
[340674660,1729645841103,-150.0,0.00023874,2]
[340674661,1729645841113,-150.0,0.00023874,2]
[340674662,1729645841122,-229.876,0.00023874,2]
[340674663,1729645841132,-263.558,0.00023874,2]
[340674664,1729645841141,-202.0,0.00023874,2]
[340674665,1729645841150,-812.0,0.00023874,2]
[340674666,1729645841158,-449.0,0.00023874,2]
[340674667,1729645841167,-1245.0,0.00023874,2]
[340674668,1729645841177,-560.0,0.00023874,2]
[340674669,1729645841186,-155.88,0.00024031,2]
[340674670,1729645841196,-803.18609717,0.000245,2]
[340674671,1729645841205,-1000.0,0.00024658,2]
[340674672,1729645841214,-152.13,0.000247,2]
[340674673,1729645841223,-158.84,0.00024877,30]
[340674674,1729645841233,-1217.66706019,0.000249,2]
[340674675,1729645841242,-213.57,0.00025802,2]
[340674676,1729645841252,-1000.0,0.00026043,2]
[340674677,1729645841262,-150.0,0.00026874,2]
[340674678,1729645841271,-150.0,0.00026874,2]
[340674679,1729645841280,-150.0,0.00026874,2]
[340674680,1729645841289,-1000.0,0.00027397,7]
[340674681,1729645841299,-152.41,0.00027397,2]
[340674682,1729645841308,-213.57,0.00028066,2]
[340674683,1729645841318,-1000.0,0.00028647,2]
[340674684,1729645841327,-150.0,0.00029874,2]
[340674685,1729645841336,-150.0,0.00029874,2]
[340674686,1729645841345,-154.14745865,0.0003,2]
[340674687,1729645841354,-213.57,0.0003033,2]
[340674688,1729645841364,-1000.0,0.00031252,2]
[340674689,1729645841374,-213.57,0.00032594,2]
[340674690,1729645841384,-155.88,0.0003272,2]
[340674691,1729645841394,-250.42,0.00032866,10]
[340674692,1729645841404,-290.756,0.00032876,33]
[340674693,1729645841413,-561.25,0.00033151,120]
[340674694,1729645841422,-424.55,0.00033151,120]
[340674695,1729645841432,-153.61,0.000335,31]
[340674696,1729645841442,-153.61,0.000335,31]
[340674697,1729645841453,-153.61,0.000335,31]
[340674698,1729645841464,-153.61,0.000335,31]
[340674699,1729645841475,-153.61,0.000335,31]
[340674700,1729645841484,-153.61,0.000335,31]
[340674701,1729645841494,-153.61,0.000335,31]
[340674702,1729645841503,-153.61,0.000335,31]
[340674703,1729645841512,-211.0,0.00034,31]
[340674704,1729645841522,-152.13,0.00034057,2]
[340674705,1729645841531,-309.3,0.000348,2]
[340674706,1729645841540,-996.9,0.000348,2]
[340674707,1729645841550,-213.57,0.00034858,2]
[340674708,1729645841559,-16250.1339414,0.00034913,7]
[340674709,1729645841568,-500.0,0.00034923,13]
[340674710,1729645841578,-500.0,0.00034923,13]
[340674711,1729645841587,-500.0,0.00034923,13]
[340674712,1729645841597,-500.0,0.00034923,13]
[340674713,1729645841606,-500.0,0.00034923,13]
[340674714,1729645841615,-500.0,0.00034923,13]
[340674715,1729645841624,-500.0,0.00034923,13]
[340674716,1729645841634,-500.0,0.00034923,13]
[340674717,1729645841645,-213.57,0.00037122,2]
[340674718,1729645841654,-609.90705678,0.00039107,11]
[340674719,1729645841663,-213.57,0.00039386,2]
[340674720,1729645841673,-152.0,0.00039675,3]
[340674721,1729645841682,-153.61,0.000397,31]
[340674722,1729645841691,-153.61,0.000397,31]
[340674723,1729645841700,-153.61,0.000397,31]
[340674724,1729645841710,-153.61,0.000397,31]
[340674725,1729645841719,-153.61,0.000397,31]
[340674726,1729645841728,-153.61,0.000397,31]
[340674727,1729645841737,-153.61,0.000397,31]
[340674728,1729645841747,-153.61,0.000397,31]
[340674729,1729645841758,-153.61,0.000397,31]
[340674730,1729645841767,-153.61,0.000397,31]
[340674731,1729645841776,-153.61,0.000397,31]
[340674732,1729645841787,-153.61,0.000397,31]
[340674733,1729645841796,-153.61,0.000397,31]
[340674734,1729645841805,-153.61,0.000397,31]
[340674735,1729645841815,-153.61,0.000397,31]
[340674736,1729645841825,-153.61,0.000397,31]
[340674737,1729645841834,-155.88,0.00041409,2]
[340674738,1729645841844,-213.57,0.00041649,2]
[340674739,1729645841854,-152.0,0.00043121,4]
[340674740,1729645841865,-152.13,0.00043414,2]
[340674741,1729645841874,-500.0,0.00043836,29]
[340674742,1729645841883,-213.57,0.00043913,2]
[340674743,1729645841892,-150.0,0.00044,57]
[340674744,1729645841902,-561.25,0.00044384,120]
[340674745,1729645841911,-424.55,0.00044384,120]
[340674746,1729645841920,-153.61,0.000459,39]
[340674747,1729645841929,-153.61,0.000459,39]
[340674748,1729645841938,-153.61,0.000459,39]
[340674749,1729645841947,-153.61,0.000459,39]
[340674750,1729645841956,-153.61,0.000459,39]
[340674751,1729645841965,-153.61,0.000459,39]
[340674752,1729645841975,-153.61,0.000459,39]
[340674753,1729645841984,-153.61,0.000459,39]
[340674754,1729645841994,-153.61,0.000459,39]
[340674755,1729645842003,-153.61,0.000459,39]
[340674756,1729645842012,-153.61,0.000459,39]
[340674757,1729645842022,-153.61,0.000459,39]
[340674758,1729645842031,-153.61,0.000459,39]
[340674759,1729645842040,-153.61,0.000459,39]
[340674760,1729645842049,-153.61,0.000459,39]
[340674761,1729645842058,-153.61,0.000459,39]
[340674762,1729645842068,-213.57,0.00046177,2]
[340674763,1729645842078,-919.0,0.00046371,7]
[340674764,1729645842087,-500.0,0.00046419,120]
[340674765,1729645842097,-500.0,0.00046419,120]
[340674766,1729645842106,-500.0,0.00046419,120]
[340674767,1729645842116,-500.0,0.00046419,120]
[340674768,1729645842125,-500.0,0.00046419,120]
[340674770,1729645842135,-500.0,0.00046419,120]
[340674772,1729645842144,-16250.1339414,0.00046557,9]
[340674774,1729645842155,-152.0,0.00046567,5]
[340674775,1729645842164,-8500.0,0.0004699,16]
[340674776,1729645842173,-2550.0,0.00048,120]
[340674777,1729645842183,-276.35023592,0.00048,120]
[340674779,1729645842192,-16250.1339414,0.00048014,10]
[340674780,1729645842201,-21160.57456129,0.00048024,120]
[340674782,1729645842211,-162.97585244,0.00048133,30]
[340674784,1729645842220,-2000.0,0.00048149,120]
[340674786,1729645842229,-2000.0,0.00048149,120]
[340674788,1729645842238,-562.68112226,0.00048149,120]
[340674790,1729645842248,-9963.49242077,0.00048171,10]
[340674792,1729645842257,-16250.1339414,0.0004818,10]
[340674793,1729645842267,-9963.49242077,0.0004818,10]
[340674794,1729645842276,-5800.0,0.00048182,7]
[340674795,1729645842286,-5800.0,0.00048191,7]
[340674797,1729645842295,-5800.0,0.00048199,7]
[340674799,1729645842305,-9963.49242077,0.00048203,10]
[340674801,1729645842314,-159.22,0.00048206,120]
[340674803,1729645842325,-5800.0,0.00048208,7]
[340674804,1729645842334,-16250.1339414,0.00048213,10]
[340674805,1729645842343,-5800.0,0.00048216,7]
[340674807,1729645842353,-9963.49242077,0.00048223,10]
[340674809,1729645842362,-5800.0,0.00048225,7]
[340674810,1729645842371,-9963.49242077,0.0004823,10]
[340674812,1729645842380,-5800.0,0.00048233,7]
[340674813,1729645842390,-16250.1339414,0.0004824,10]
[340674814,1729645842399,-159.22,0.0004824,120]
[340674815,1729645842408,-5800.0,0.00048242,7]
[340674816,1729645842417,-5800.0,0.0004825,7]
[340674817,1729645842426,-4046.1835729,0.0004825,7]
[340674818,1729645842435,-213.57,0.00048441,2]
[340674819,1729645842444,-401.36931497,0.00048777,27]
[340674820,1729645842454,-9963.49242077,0.00048867,10]
[340674821,1729645842463,-430.06,0.00048877,2]
[340674822,1729645842472,-300.0,0.00048877,2]
[340674823,1729645842481,-359.59,0.00048877,2]
[340674824,1729645842491,-150.0,0.00048877,2]
[340674825,1729645842500,-150.0,0.00048877,2]
[340674826,1729645842509,-359.59,0.00048877,2]
[340674827,1729645842518,-150.0,0.00048877,2]
[340674828,1729645842527,-430.06,0.00048877,2]
[340674829,1729645842536,-150.0,0.00048877,2]
[340674830,1729645842545,-150.0,0.00048877,2]
[340674831,1729645842554,-430.06,0.00048877,2]